Cogmind - Beta 14 @@@ ROGUE MODE // 2024.08.31 @ 20:39:31 Player: cptwinky Result: Destroyed self with Subdweller Shrapnel Launcher Performance ------------- Evolutions (0) 0 Regions Visited (2) 400 Robots Destroyed (27) 135 Value Destroyed (805) 805 Prototype IDs (2) 40 Alien Tech Used (0) 0 Bonus (0) 0 TOTAL SCORE: 1380 Bonus ------- None Cogmind --------- Core Integrity 0/250 Matter 250/300 Energy 163/200 System Corruption 0% Temperature Cool (6) Movement Core (650) Ox12 Location -10/Subcaves Parts ------- > --- POWER (1) -------- Subdweller Power Source > --- PROPULSION (2) --- Aluminum Leg > --- UTILITY (2) ------ Large Storage Unit Makeshift Light Armor Plating > --- WEAPON (2) ------- Subdweller Shrapnel Launcher > --- INVENTORY (15) --- Subdweller Power Source Compact Wheel Subdweller Monowheel Seismic Detector Makeshift Targeting Computer Makeshift Hacking Suite Subdweller Beam Cannon Subdweller Beam Cannon Subdweller Beam Cannon Subdweller Machine Gun Subdweller Machine Gun Subdweller Machine Gun Makeshift Shrapnel Gun Battle Cannon Datajack Peak State ------------ > --- POWER ------------ Subdweller Power Source > --- PROPULSION ------- Light Treads Aluminum Leg > --- UTILITY ---------- Large Storage Unit Makeshift Light Armor Plating > --- WEAPON ----------- Battle Cannon Battle Cannon > --- INVENTORY -------- Subdweller Power Source Compact Wheel Subdweller Monowheel Seismic Detector Makeshift Targeting Computer Makeshift Hacking Suite Subdweller Beam Cannon Subdweller Beam Cannon Subdweller Beam Cannon Subdweller Machine Gun Subdweller Machine Gun Subdweller Machine Gun Makeshift Shrapnel Gun Subdweller Shrapnel Launcher Datajack [Rating: 16] Favorites ----------- Power Ion Engine Engine Ion Engine Propulsion Light Treads Treads Light Treads Leg Aluminum Leg Utility Large Storage Unit Device Seismic Detector Storage Large Storage Unit Protection Makeshift Light Armor Plating Weapon Battle Cannon Ballistic Gun Light Assault Rifle Ballistic Cannon Battle Cannon Launcher Subdweller Shrapnel Launcher Build | -11 -10 -10 ------- Run | Yrd Mat Sub Slots Evolved . | . . . Power . | . . . Propulsion . | . . . Utility . | . . . Weapon . | . . . Parts Attached 26 | 6 6 14 Power 4 | 1 1 2 Engine 4 | 1 1 2 Core . | . . . Reactor . | . . . Propulsion 3 | 2 . 1 Treads 2 | 2 . . Leg 1 | . . 1 Wheel . | . . . Hover . | . . . Flight . | . . . Utility 12 | 1 3 8 Device 7 | . 1 6 Storage 3 | 1 2 . Processor . | . . . Hackware . | . . . Protection 2 | . . 2 Artifact . | . . . Weapon 7 | 2 2 3 Energy Gun . | . . . Energy Cannon . | . . . Ballistic Gun 2 | 2 . . Ballistic Cannon 4 | . 2 2 Launcher 1 | . . 1 Special Weapon . | . . . Impact Weapon . | . . . Slashing Weapon . | . . . Piercing Weapon . | . . . Special Melee Weapon . | . . . Unidentified Prototypes . | . . . Parts Lost 6 | . . 6 Power 2 | . . 2 Propulsion 2 | . . 2 Utility . | . . . Weapon 2 | . . 2 Highest Loss Streak 2 | . . 2 To Critical Strikes . | . . . Average Slot Usage (%) 98 | . 93 99 Engine 13 | . 14 13 Treads 22 | . 28 20 Leg 5 | . . 7 Device 11 | . 8 12 Storage 14 | . 14 14 Ballistic Gun 1 | . 8 . Ballistic Cannon 26 | . 19 27 Peak Build Rating 16 | 6 8 16 Average Rating 10 | 5 7 11 On Entrance 4 | . 6 8 Naked Turns . | . . . Heaviest Build 35 | 11 32 35 Greatest Support 40 | 40 40 40 Greatest Overweight (x) 1 | . . 1 Average Overweight (x) . | . . . Largest Inventory Capacity 15 | 8 15 15 Average Capacity 13 | 7 10 15 Most Carried 15 | 7 10 15 Average Carried 13 | 4 9 14 Final Capacity 15 | 8 15 15 Final Carried 15 | 7 10 15 Class Distribution -------------------- 100% | Mutant Dominant Class ---------------- Mutant | -10/Materials Mutant | -10/Subcaves Resources | -11 -10 -10 ----------- Run | Yrd Mat Sub Matter Collected 948 | 264 199 485 Remotely . | . . . Salvage Created 577 | 28 274 275 Parts 50 | 5 23 22 Haulers Intercepted 1 | . 1 . Recyclers Shooed 1 | 1 . . Parts Field Recycled . | . . . Retrieved Matter . | . . . Parts Self-Destructed 5 | . . 5 Prevented . | . . . Kills | -11 -10 -10 ------- Run | Yrd Mat Sub Combat Hostiles Destroyed 22 | . 9 13 Guns 4 | . 4 . Cannons 17 | . 5 12 AOE 1 | . . 1 Classes Destroyed 8 | 1 5 2 Worker 1 | . 1 . Tunneler 2 | 2 . . Hauler 1 | . 1 . Operator 1 | . 1 . Swarmer 3 | . 3 . Grunt 6 | . 6 . Sentry 1 | . . 1 Subdweller 12 | . . 12 Best Kill Streak 5 | 1 5 3 Combat Bots Only 4 | . 4 3 Max Kills in Single Turn 1 | 1 1 1 Gunslinging . | . . . Exploded 1 | . . 1 Melee . | . . . Uniques/NPCs Destroyed . | . . . Combat | -11 -10 -10 -------- Run | Yrd Mat Sub Hostile Shots Fired 93 | . 23 70 Missed 29 | . 6 23 Damage Taken 1288 | . 173 1115 Core 264 | . 17 247 Absorbed by Shields . | . . . Core Remaining (%) 100 | 100 . . Volleys Fired 72 | 4 22 46 Largest 2 | 2 2 2 Hottest 78 | 40 70 78 Shots Fired 141 | 8 44 89 Gun 30 | 8 22 . Cannon 109 | . 22 87 Launcher 2 | . . 2 Special . | . . . Kinetic 141 | 8 44 89 Thermal . | . . . Explosive . | . . . Electromagnetic . | . . . Robot Hit Streak 21 | 2 5 21 Robot Miss Streak 4 | 1 4 3 Penetration Max . | . . . Secondary Targets 1 | . 1 . Max Gunslinging Chain 1 | . 1 . Shots Hit Robots 85 | 5 20 60 Core Hits 40 | 2 14 24 Critical Kills . | . . . Critical Parts Destroyed . | . . . Critical Strikes 3 | . . 3 Blast 3 | . . 3 Melee Attacks . | . . . Impact . | . . . Slashing . | . . . Piercing . | . . . Sneak Attacks . | . . . Combat Hostiles . | . . . Follow-up Attacks . | . . . Damage Inflicted 1679 | 66 322 1291 Guns 183 | 66 117 . Cannons 1311 | . 201 1110 Explosions 181 | . . 181 Melee . | . . . Ramming 4 | . 4 . Kinetic 1675 | 66 318 1291 Thermal . | . . . Explosive . | . . . Electromagnetic . | . . . Impact . | . . . Slashing . | . . . Piercing . | . . . Highest Corruption . | . . . Average Corruption . | . . . Corruption Purged . | . . . Corruption Blocked . | . . . Overload Shots . | . . . Overflow Damage . | . . . Projectiles . | . . . Explosions . | . . . Melee . | . . . Knockbacks 13 | . . 13 Impact . | . . . Kinetic 13 | . . 13 Secondary . | . . . Self-Inflicted Damage 52 | . . 52 Shots 2 | . . 2 Rammed 1 | . 1 . Targets Rammed 2 | . 2 . Kicked . | . . . Crushed 1 | . 1 . Highest Temperature 141 | . 141 13 Average Temperature 52 | . 53 13 Received Heat Transfer 351 | . 84 267 Siege Activations . | . . . Robots Corrupted . | . . . Combat Hostiles . | . . . Parts Fried . | . . . Impact Corruptions . | . . . Robots Melted . | . . . Combat Hostiles . | . . . Parts Melted 1 | . . 1 Heat Transferred . | . . . Parts Sabotaged . | . . . Parts Stolen . | . . . Parts Stripped . | . . . Power Chain Reactions . | . . . Alert | -11 -10 -10 ------- Run | Yrd Mat Sub Peak Influence 250 | 10 250 . Initial 6 | . 6 . Average 61 | 2 69 . Maximum Alert Level 1 | . 1 . Low Security (%) 99 | 100 99 . Level 1 . | . . . Level 2 . | . . . Level 3 . | . . . Level 4 . | . . . Level 5 . | . . . High Security . | . . . Max Security . | . . . Squads Dispatched 2 | . 2 . Investigation 1 | . 1 . Extermination . | . . . Reinforcement 1 | . 1 . Assault . | . . . Garrison . | . . . Intercept . | . . . Searches Triggered . | . . . Construction Impeded . | . . . Haulers Reinforced . | . . . Active Scanning Responses . | . . . Cargo Convoy Interrupts . | . . . Stealth | -11 -10 -10 --------- Run | Yrd Mat Sub Distress Signals 2 | . 2 . Communications Jammed . | . . . Distress Signals . | . . . Times Spotted 25 | . 11 14 Peak Tracking Total 4 | . 4 3 Tactical Retreats . | . . . Traps | -11 -10 -10 ------- Run | Yrd Mat Sub Traps Triggered 2 | . 1 1 Indirectly . | . . . Trap Hack Attempts . | . . . Triggered . | . . . Disarmed . | . . . Reprogrammed . | . . . Reused . | . . . Traps Extracted . | . . . Installed . | . . . Triggered . | . . . Machines | -11 -10 -10 ---------- Run | Yrd Mat Sub Machines Disabled 1 | . 1 . Max in Single Turn 1 | . 1 . Machines Repaired . | . . . Machines Dismantled . | . . . Machines Sabotaged . | . . . Overloaded Fab Kills . | . . . Hacking | -11 -10 -10 --------- Run | Yrd Mat Sub Machines Accessed 6 | . 6 . Terminals 6 | . 6 . Fabricators . | . . . Repair Stations . | . . . Recycling Units . | . . . Scanalyzers . | . . . Garrison Access . | . . . Total Hacks 17 | . 17 . Successful 10 | . 10 . Failed 6 | . 6 . Catastrophic . | . . . Database Lockouts 1 | . 1 . Manual 13 | . 13 . Terminals 17 | . 17 . Fabricators . | . . . Repair Stations . | . . . Recycling Units . | . . . Scanalyzers . | . . . Garrison Access . | . . . Terminal Hacks 4 | . 4 . Robot Analysis 3 | . 3 . Prototype ID Bank 1 | . 1 . Fabricator Hacks . | . . . Repair Station Hacks . | . . . Recycling Unit Hacks . | . . . Scanalyzer . | . . . Garrison Access Hacks . | . . . Unauthorized Hacks 6 | . 6 . Terminals 6 | . 6 . Botnet 1 | . 1 . Skim 5 | . 5 . Fabricators . | . . . Repair Stations . | . . . Recycling Units . | . . . Scanalyzers . | . . . Garrison Access . | . . . Data Cores Recovered . | . . . Used . | . . . Hacking Detections 6 | . 6 . Full Trace Events . | . . . Feedback Events . | . . . Feedback Blocked . | . . . Robot Schematics Acquired . | . . . Robots Built . | . . . Authchips . | . . . Time . | . . . Total Robot Build Rating . | . . . Part Schematics Acquired . | . . . Parts Built . | . . . Authchips . | . . . Time . | . . . Total Part Build Rating . | . . . Parts Repaired . | . . . Time . | . . . Parts Recycled . | . . . Recycled Matter . | . . . Retrieved Matter . | . . . Retrieved Components . | . . . Parts Scanalyzed . | . . . Part Schematics Acquired . | . . . Parts Damaged . | . . . Bothacking | -11 -10 -10 ------------ Run | Yrd Mat Sub Used RIF Installer . | . . . Robots Hacked . | . . . Non-combat . | . . . Combat . | . . . Robot Hacks Applied . | . . . Relay Couplers Released . | . . . Fabnet Peak Effective % . | . . . Robots Rewired . | . . . Allies Hacked . | . . . Hacks Repelled . | . . . Allies | -11 -10 -10 -------- Run | Yrd Mat Sub Total Allies . | . . . Largest Group . | . . . Highest-Rated Group . | . . . Highest-Rated Ally . | . . . Total Orders . | . . . Ally Attacks . | . . . Total Damage . | . . . Kills . | . . . Allies Corrupted . | . . . Allies Melted . | . . . Intel | -11 -10 -10 ------- Run | Yrd Mat Sub Robot Analysis Total 3 | . 3 . Derelict Logs Recovered 2 | . . 2 Drone Launches . | . . . Drone Recoveries . | . . . Exploration | -11 -10 -10 ------------- Run | Yrd Mat Sub Turns Passed 4679 | 129 954 3596 Spaces Moved 1973 | 66 312 1595 Core 4 | 4 . . Treads 1969 | 62 312 1595 Legs . | . . . Wheels . | . . . Hover . | . . . Flight . | . . . Fastest Speed 50 | 50 160 160 Average Speed 189 | 153 160 196 Slowest Speed 240 | 160 160 240 Overloaded Moves . | . . . Propulsion Burnouts . | . . . Robots Hopped . | . . . Cave-ins Triggered . | . . . Exploration Rate (%) 41 | 5 43 76 Regions Visited 2 Branch Regions 1 Pre-discovered Areas 2 | . 1 1 Known Exits Taken 1 | . 1 . Unknown Exits Taken 1 | 1 . . Scrap Searched 6 | . . 6 Spaces Dug 8 | . . 8 Terrain Destroyed 23 | . . 23 Melee . | . . . Projectile 2 | . . 2 AOE 21 | . . 21 Terrain Rammed . | . . . Walls Destroyed . | . . . Machines Disabled . | . . . Actions | -11 -10 -10 --------- Run | Yrd Mat Sub Total 2774 | 84 725 1965 Wait 665 | 2 377 286 Move 1971 | 65 311 1595 Hop . | . . . Pick Up 24 | 7 1 16 Fast Attach 11 | 6 4 1 Attach 4 | . . 4 Detach 3 | . 3 . Swap 11 | . 2 9 Drop 11 | . 3 8 Fire 72 | 4 22 46 Melee . | . . . Ram . | . . . Kick . | . . . Crush 2 | . 2 . Escape Stasis . | . . . Rewire . | . . . Trap . | . . . Miscellaneous . | . . . Route ------- -11/Scrapyard -10/Materials (discovered 5 exits: Mat x3 / [*Min] / *Sub) -10/Subcaves (discovered 2 exits: *Mat x2) History --------- Turn | Location | Event 2 | -11/Scrapyard | Met Revision 17 5 | -11/Scrapyard | Discovered new exit (range 16) 130 | -11/Scrapyard | Entered Materials 300 | -10/Materials | Discovered new exit (range 16) 304 | -10/Materials | Build established: Mutant 630 | -10/Materials | Central database locked down 688 | -10/Materials | Identified exit to Materials 804 | -10/Materials | Learned Storage stockpile data 826 | -10/Materials | Learned Storage trap positions 838 | -10/Materials | Learned Storage emergency access door positions 839 | -10/Materials | Identified exit to Subcaves 839 | -10/Materials | Learned location of 1 exit from Materials 870 | -10/Materials | Learned 2 Storage zone layouts 903 | -10/Materials | Learned Storage security intel 1084 | -10/Materials | Entered Subcaves 1085 | -10/Subcaves | Identified exit to Materials 1086 | -10/Subcaves | Learned Materials stockpile data 1116 | -10/Subcaves | Shifting Twisted Machinery released Sub. Power Source 1118 | -10/Subcaves | Shifting Twisted Machinery released Sub. Machine Gun 1831 | -10/Subcaves | Discovered exit to Materials (range 9) 2435 | -10/Subcaves | Learned location of Storage (-7) 2518 | -10/Subcaves | Shifting Twisted Machinery released Battle Rifle 2521 | -10/Subcaves | Shifting Twisted Machinery released Mak. Flight Unit 2807 | -10/Subcaves | A swath of the cavern ceiling suddenly collapsed 2847 | -10/Subcaves | Disturbed a concealed Subdweller 3686 | -10/Subcaves | Core integrity fell below 50% 4674 | -10/Subcaves | A Subdweller sparked back to life 4674 | -10/Subcaves | A Subdweller sparked back to life 4674 | -10/Subcaves | A Subdweller sparked back to life 4679 | -10/Subcaves | Core integrity fell below 20% 4680 | -10/Subcaves | Destroyed self with Subdweller Shrapnel Launcher Last Messages --------------- 03633_ Acquired 10 matter. 03696_ Sub. Optics melted. 03696_ L0-05N(R) destroyed. 03721_ Acquired 26 matter. 03723_ Acquired 1 matter. 03791_ J5-4FG(R) destroyed. 03799_ Acquired 19 matter. 03804_ Acquired Sub. Power Source. 03807_ Acquired 4 matter. 03812_ Acquired 8 matter. 04181_ Acquired 3 matter. 04207_ Acquired 29 matter. 04311_ Subatomizers dissect the Disposable Heat Sink. 04674_ NE-KU0(R) creaks and sparks as it begins to move. 04674_ HE-S3M(R) creaks and sparks as it begins to move. 04674_ 19-TIB(R) creaks and sparks as it begins to move. 04676_ Battle Cannon destroyed. 04676_ Lgt. Treads destroyed. 04678_ HE-S3M(R) destroyed. Map ----- +----------------------------------------------------+ | #?? ###?# ? ?????# #?## ##?????????? | | ##? ##??? ??????## #### #?????????? | | ## #???????????######## ## #?????????? | | #???????????????#### ##?????????? | | #???????????????## ###??????????? | | #???????????????# #????????????? | | [ ##??????????????## ## #????????????? | | ##???????????????# ###### #????????????? | | #????????????????# #???## #????????????? | | #????????##### ##### #????????????? | | #????????# ### ## ##????????????? | | ### ##????????# ## ### ##?????????????? | | ###???##??????#### #?#####??????????????? | | ##?????????????# #????????????????????? | | #??????????????# ####?????????????????? | | #?????????????## #?????????????????? | | ##?????????????# ##?????????????????? | | ##?????????????# #??????????????????? | | #?????????????## ### #??????????????????? | | #??????????????## ;;## #?####?????????????? | | #??????????????##; ;;;# #### ##????????????? | | #??????????????# ;; ###### #????????????? | | ##?????????????###; &= #?????????????? | | ##??????????????#; R% ##?????????????? | | ##???????????????# &! ##??????????????? | | ##???????????????# @### #???????????????? | | #??????????????#; R #?### #???????????????? | | #?????????????##;; ##??####???????????????? | | #???????????????# ;; ##????????????????????? | | ##???????????????# ;; ##???????????????????? | | ##????????????????### ##??????????????????? | | ???????????????????# #??????????????????? | | ???????????????????### ####???????????????? | | ?????????????????????## ##??????????????? | | ?????????????????????###### ####???????????? | | ????????????????????## ???# ##??????????? | | ??????######????????# #??## ####???????? | | ??????# !"##????????# #??## ## ###"##??????? | | ??????##"&&&#????????# #?## ##??###?# #??????? | | ???????#### #?????????# ## ##????#### #??????? | | ???????# &!"#??????????# ####### # ##?????? | | ??????###[###?????????## ""= ### ""? | | ####### " "####???????# [""" " | | # # ##??######## ## """"" | | #### #### ## #### """"" | | #####?# """ | | # #### ##?????# "" | | ####??#### #### # ## ######??????## ###" "" | | ?????????####??##########????????????# ##????#?? | | ?????????????????????????????????????##"##???????? | +----------------------------------------------------+ Best States ------------- Heat Dissipation 35 Energy Generation 10 Energy Capacity 250 Matter Stores 300 Matter Capacity 300 Sight Range 21 Terrain Scan Density 10 Armor Coverage 100 Evasion (%) 40 Recoil Reduction 2 Item Schematics ----------------- None Robot Schematics ------------------ None Fabricated ------------ Nothing Alien Tech Used ----------------- None Achievements -------------- None Challenges ------------ None Game ------ Seed BombVoltaicCompressor Manual? 0 Play Time 00:19:43 Cumulative 1660.0 hours Start 2024.08.31 @ 20:27:29 End 2024.08.31 @ 20:39:31 Sessions 1 Manual Loads 0 Difficulty Rogue Special Mode None Game No. 1133 Rogue 1129 Adventurer 4 Explorer 0 Win Type - Total 209 Types 156/11/15/9/2/1/3/8/4 Lore% 97 Gallery% 97 Achievement% 98 Wizard Run 0 Options --------- Layout 2 ASCII 0 Keyboard 1 Movement Vi Keybinds 0 Fullscreen 0 Font 24/Terminus Map View 59x48 Zoom Use 0% Tactical HUD 1 Map Filters NONE Filters NONE Steam 1 RUN: c804e6a0-23f4-47ab-bb64-ffc8ed172b16